bitfinex-derivatives/quotes_BTCF0:USTF0_20251011
["timestamp","ask_amount","ask_price","bid_price","bid_amount"]
[1760173702357,0.5211593,111590.0,111580.0,0.04643]
[1760173703149,0.05503182,111590.0,111580.0,0.80723]
[1760173703349,0.05503182,111590.0,111580.0,1.1618313]
[1760173703552,0.02290015,111590.0,111580.0,1.2513725]
[1760173704347,0.23213167,111600.0,111590.0,0.1252131]
[1760173704553,0.17798836,111600.0,111590.0,0.6060131]
[1760173704854,0.17798836,111600.0,111590.0,1.0060131]
[1760173705357,0.26751346,111600.0,111590.0,0.51648]
[1760173707256,0.26851346,111600.0,111590.0,0.51648]
[1760173707957,0.26751346,111600.0,111590.0,0.51648]
[1760173710557,0.17798836,111600.0,111590.0,1.0060131]
[1760173710862,0.26751346,111600.0,111590.0,0.91648]
[1760173711058,0.26751346,111600.0,111590.0,0.51648]
[1760173711260,0.26751346,111600.0,111590.0,0.6060131]
[1760173711458,0.26751346,111600.0,111590.0,0.51648]
[1760173711855,0.26751346,111600.0,111590.0,0.91648]
[1760173712061,0.26751346,111600.0,111590.0,0.51648]
[1760173712261,0.26851346,111600.0,111590.0,0.15568]
[1760173713664,0.26851346,111600.0,111590.0,0.51648]
[1760173715264,0.26851346,111600.0,111590.0,0.6060132]
[1760173715458,0.17898836,111600.0,111590.0,1.0060132]
[1760173716963,0.17898836,111600.0,111590.0,1.42313008]
[1760173719463,0.0639233,111650.0,111640.0,0.03568]
[1760173719668,0.450277,111660.0,111650.0,0.03568]
[1760173719869,0.450277,111660.0,111650.0,0.05568]
[1760173720864,0.001,111660.0,111650.0,0.05568]
[1760173721068,0.001,111660.0,111650.0,0.505965]
[1760173721665,0.002,111660.0,111650.0,0.505965]
[1760173721865,0.002,111660.0,111650.0,0.41648]
[1760173722464,0.3628,111660.0,111650.0,0.05568]
[1760173722765,0.001,111660.0,111650.0,0.41648]
[1760173723268,0.0894691,111670.0,111660.0,0.0128]
[1760173723570,0.0894691,111670.0,111660.0,0.06439]
[1760173723965,0.0894691,111670.0,111660.0,0.0732467]
[1760173724667,0.0894691,111670.0,111660.0,0.0516567]
[1760173725267,0.4894691,111670.0,111660.0,0.0516567]
[1760173725468,0.8502691,111670.0,111660.0,0.0388567]
[1760173725674,0.8512691,111670.0,111660.0,0.0388567]
[1760173725871,0.8512691,111670.0,111660.0,0.03]
[1760173726072,0.8512691,111670.0,111640.0,0.37362]
[1760173726073,0.0894851,111650.0,111640.0,0.37362]
[1760173726273,0.0894851,111650.0,111640.0,0.38362]
[1760173726570,0.0894851,111650.0,111640.0,0.40521]
[1760173727272,0.0894851,111650.0,111640.0,0.41400883]
[1760173727869,0.3608,111660.0,111640.0,0.41400883]
[1760173728174,0.4502771,111660.0,111650.0,0.0128]
[1760173728370,0.4502771,111660.0,111650.0,0.02]
[1760173728969,0.4502771,111660.0,111650.0,0.05439]
[1760173729774,0.4512771,111660.0,111650.0,0.0328]
[1760173729970,0.8512771,111660.0,111650.0,0.02]
[1760173730180,0.8502771,111660.0,111650.0,0.02]
[1760173730370,0.8502771,111660.0,111650.0,0.0328]
[1760173731070,0.4894771,111660.0,111650.0,0.05439]
[1760173731271,0.3608,111670.0,111660.0,0.03439]
[1760173731473,0.089477,111660.0,111650.0,0.3736]
[1760173731672,0.089477,111660.0,111650.0,0.09439]
[1760173731874,0.090477,111660.0,111650.0,0.09439]
[1760173732275,0.089477,111660.0,111650.0,0.09439]
[1760173733078,0.090477,111660.0,111650.0,0.45519]
[1760173735782,0.851277,111660.0,111650.0,0.0728]
[1760173737182,0.851277,111660.0,111650.0,0.06]
[1760173737984,0.451277,111660.0,111650.0,0.09649]
[1760173738189,0.090477,111660.0,111650.0,0.45729]
[1760173738489,0.090477,111660.0,111650.0,0.09649]
[1760173739386,0.490477,111660.0,111650.0,0.07371]
[1760173739586,0.851277,111660.0,111650.0,0.07371]
[1760173739788,0.451277,111660.0,111650.0,0.09649]
[1760173740182,0.090477,111660.0,111650.0,0.09649]
[1760173740690,0.239177,111660.0,111650.0,0.09649]
[1760173740885,0.090477,111660.0,111650.0,0.09649]
[1760173741591,0.001,111660.0,111650.0,1.36389188]
[1760173741791,0.001,111660.0,111650.0,1.27440688]
[1760173741988,0.089469,111670.0,111650.0,1.27440688]
[1760173742291,0.089469,111670.0,111660.0,0.39729]
[1760173742489,0.86738588,111670.0,111660.0,0.03]
[1760173742792,1.41541536,111670.0,111660.0,0.03]
[1760173745388,1.77621536,111670.0,111660.0,0.03]
[1760173745692,0.0894851,111650.0,111640.0,0.02161883]
[1760173745891,0.4502851,111650.0,111640.0,0.04439883]
[1760173746091,0.04815787,111660.0,111650.0,0.03649]
[1760173746092,0.0894812,111660.0,111650.0,0.03649]
[1760173746286,0.0894812,111660.0,111650.0,0.04649]
[1760173747183,0.089477,111660.0,111650.0,0.04649]
[1760173747385,0.089477,111660.0,111650.0,0.02371]
[1760173747587,0.49843487,111660.0,111650.0,0.02371]
[1760173747789,0.089477,111660.0,111650.0,0.02371]
[1760173747998,0.089477,111660.0,111650.0,0.04649]
[1760173748288,0.13763047,111670.0,111660.0,0.03649]
[1760173748496,0.4502726,111670.0,111660.0,0.06649]
[1760173749094,0.4502726,111670.0,111660.0,0.04371]
[1760173749291,0.4502726,111670.0,111660.0,0.06649]
[1760173749495,0.0894726,111670.0,111660.0,0.04371]
[1760173749793,0.4502726,111670.0,111660.0,0.06649]
[1760173750198,0.0894726,111670.0,111660.0,0.06649]
[1760173753899,0.089469,111670.0,111660.0,0.42729]
[1760173754493,0.1533923,111670.0,111660.0,0.42729]
[1760173754892,0.089469,111670.0,111660.0,0.42729]
[1760173755695,0.089469,111670.0,111660.0,0.06649]
[1760173756098,0.93130918,111670.0,111660.0,0.03]
[1760173756296,0.5141923,111670.0,111660.0,0.04371]
[1760173756602,0.5141923,111670.0,111660.0,0.03]
[1760173758194,0.9141923,111670.0,111660.0,0.03]
[1760173759105,0.089485,111650.0,111640.0,0.48813883]
[1760173759297,0.13779906,111650.0,111640.0,0.48813883]
[1760173761198,0.13779906,111650.0,111640.0,0.49813883]
[1760173761500,0.13779906,111650.0,111640.0,0.47535883]
[1760173761699,0.13779906,111650.0,111640.0,0.41519883]
[1760173764004,0.13779906,111650.0,111640.0,0.81519883]
[1760173765207,0.13779906,111650.0,111640.0,0.41519883]
[1760173766407,0.4824892,111650.0,111640.0,0.05439883]
[1760173766610,0.49859906,111650.0,111640.0,0.05439883]
[1760173767405,0.51855356,111650.0,111640.0,0.05439883]
[1760173767606,0.61851184,111650.0,111640.0,0.05439883]
[1760173767802,0.61851184,111650.0,111640.0,0.03161883]
[1760173768007,0.61851184,111650.0,111640.0,0.05392883]
[1760173768408,0.61851184,111650.0,111640.0,0.03161883]
[1760173768605,0.61851184,111650.0,111640.0,0.05392883]
[1760173768606,0.16822684,111650.0,111640.0,0.05392883]
[1760173768909,0.2415993,111650.0,111640.0,0.41472883]
[1760173769211,0.05215602,111650.0,111640.0,0.41472883]
[1760173770714,0.05215602,111650.0,111640.0,0.90422193]
[1760173771010,0.0199545,111650.0,111640.0,0.90422193]
[1760173781714,0.1094396,111650.0,111640.0,0.41472883]
[1760173783313,0.20939788,111650.0,111640.0,0.41472883]
[1760173785719,0.3902994,111650.0,111640.0,0.41472883]
[1760173785918,0.1094396,111650.0,111640.0,0.50422193]
[1760173786718,0.10991668,111650.0,111640.0,0.41472883]
[1760173792519,0.02043158,111650.0,111640.0,0.41472883]
[1760173792825,0.12167082,111670.0,111660.0,0.03428]
[1760173793024,0.13778336,111670.0,111660.0,0.13428]
[1760173793623,0.13778336,111670.0,111660.0,0.49508]
[1760173793825,0.13778336,111670.0,111660.0,0.13428]
[1760173794027,0.13778336,111670.0,111660.0,0.49508]
[1760173794327,0.23774164,111670.0,111660.0,0.49508]
[1760173794628,0.14827234,111670.0,111660.0,0.13428]
[1760173795016,0.23774134,111670.0,111660.0,0.13428]
[1760173796325,0.14827234,111670.0,111660.0,0.49508]
[1760173796528,0.23774134,111670.0,111660.0,0.13428]
[1760173797622,0.14827234,111670.0,111660.0,0.13428]
[1760173797821,0.14827234,111670.0,111660.0,0.49508]
[1760173798222,0.09995828,111670.0,111660.0,0.49508]
[1760173798428,0.14827234,111670.0,111660.0,0.49508]
[1760173799326,0.23774134,111670.0,111660.0,0.49508]
[1760173799828,0.14827234,111670.0,111660.0,0.49508]
[1760173800328,0.23774134,111670.0,111660.0,0.49508]
[1760173800730,0.23774134,111670.0,111660.0,0.11282]
[1760173800924,0.63774134,111670.0,111660.0,0.11282]
[1760173801130,0.99854134,111670.0,111660.0,0.1]
[1760173801532,0.99854134,111670.0,111660.0,0.1135]
[1760173801831,0.99854134,111670.0,111660.0,0.13582]
[1760173802032,0.23774134,111670.0,111660.0,0.13582]
[1760173802426,0.59854134,111670.0,111660.0,0.1135]
[1760173802626,0.23774134,111670.0,111660.0,0.13582]
[1760173802826,0.59854134,111670.0,111660.0,0.13582]
[1760173804632,0.23774134,111670.0,111660.0,0.13582]
[1760173804831,0.25846916,111670.0,111660.0,0.13582]
[1760173805331,0.61926916,111670.0,111660.0,0.13582]
[1760173807838,0.25846916,111670.0,111660.0,0.13582]
[1760173808441,0.25846916,111670.0,111660.0,0.49662]
[1760173809839,0.16900016,111670.0,111660.0,0.586097]
[1760173810139,0.1765742,111710.0,111700.0,0.0135]
[1760173810441,0.1126509,111710.0,111700.0,0.09582]
[1760173811136,0.1126509,111710.0,111700.0,0.45662]
[1760173811137,0.02321,111710.0,111700.0,0.45662]
[1760173811338,0.12416828,111710.0,111700.0,0.45662]
[1760173811641,0.21360528,111710.0,111700.0,0.46545471]
[1760173811834,0.10095828,111710.0,111700.0,0.46545471]
[1760173812033,0.001,111710.0,111700.0,0.95489971]
[1760173812234,0.1634836,111740.0,111700.0,0.95489971]
[1760173812235,0.112631,111730.0,111720.0,0.03582]
[1760173812541,0.119771,111730.0,111720.0,0.06232]
[1760173812735,0.112631,111730.0,111720.0,0.07582]
[1760173812936,0.473431,111730.0,111720.0,0.07582]
[1760173813338,0.58052928,111730.0,111720.0,0.06232]
[1760173813639,0.58252928,111730.0,111720.0,0.07582]
[1760173813838,0.58252928,111730.0,111720.0,0.43662]
[1760173813839,0.12516828,111730.0,111720.0,0.43662]
[1760173814943,0.21458928,111730.0,111720.0,0.43662]
[1760173817542,0.21458928,111730.0,111720.0,0.07582]
[1760173818736,0.21458928,111730.0,111700.0,0.02233471]
[1760173818737,0.089437,111710.0,111700.0,0.02233471]
[1760173818936,0.112647,111710.0,111700.0,0.42545471]
[1760173819142,0.112647,111710.0,111700.0,0.06465471]
[1760173819438,0.112647,111710.0,111700.0,0.42545471]
[1760173819643,0.112647,111710.0,111700.0,0.06465471]
[1760173820241,0.113647,111710.0,111700.0,0.06465471]
[1760173820645,0.21360528,111710.0,111700.0,0.06465471]
[1760173821447,0.089445,111700.0,111690.0,0.0135]
[1760173821646,0.089445,111700.0,111680.0,0.39662]
[1760173821647,0.112663,111690.0,111680.0,0.39662]
[1760173821847,0.112663,111690.0,111680.0,0.43662]
[1760173822041,0.13268263,111690.0,111680.0,0.43662]
[1760173822442,0.13268263,111690.0,111680.0,0.44562242]
[1760173822845,0.23364091,111690.0,111680.0,0.44562242]
[1760173824550,0.23364091,111690.0,111680.0,0.08482242]
[1760173825548,0.23364091,111690.0,111680.0,0.04482242]
[1760173825749,0.23364091,111690.0,111680.0,0.05482242]
[1760173826154,0.24378091,111690.0,111680.0,0.01900242]
[1760173826451,0.24378091,111690.0,111680.0,0.01]
[1760173827254,0.24378091,111690.0,111680.0,0.03139]
[1760173827452,0.24378091,111690.0,111680.0,0.04021944]
[1760173828152,0.24378091,111690.0,111680.0,0.01882944]
[1760173828756,0.24378091,111690.0,111680.0,0.00882944]
[1760173829052,1.610951,111680.0,111670.0,0.4786]
[1760173829249,2.00191063,111680.0,111670.0,0.16291]
[1760173830345,2.10186891,111680.0,111670.0,0.16291]
[1760173830745,2.14988857,111680.0,111670.0,0.16291]
[1760173830944,2.25046891,111680.0,111670.0,0.16291]
[1760173831850,2.25046891,111680.0,111670.0,0.1843]
[1760173832251,2.29848857,111680.0,111670.0,0.16291]
[1760173832760,2.24032891,111680.0,111670.0,0.19707]
[1760173833154,2.25046891,111680.0,111670.0,0.16291]
[1760173833852,2.29848857,111680.0,111670.0,0.16291]
[1760173834061,2.71520879,111680.0,111670.0,0.16291]
[1760173834355,2.25046891,111680.0,111670.0,0.1843]
[1760173834555,2.24032891,111680.0,111670.0,0.19707]
[1760173835958,2.09172891,111680.0,111670.0,0.19707]
[1760173837857,1.73092891,111680.0,111670.0,0.55787]
[1760173839256,1.61997791,111680.0,111670.0,0.55787]
[1760173839456,1.52001963,111680.0,111670.0,0.95787]
[1760173839861,1.60948063,111680.0,111670.0,0.95787]
[1760173840255,1.63097063,111680.0,111670.0,0.59707]
[1760173842358,1.63097063,111680.0,111670.0,0.16291]
[1760173842359,1.64111063,111680.0,111670.0,0.16291]
[1760173842662,2.03394534,111680.0,111670.0,0.19709]
[1760173842852,2.02380534,111680.0,111670.0,0.19709]
[1760173843054,1.63097063,111680.0,111670.0,0.59709]
[1760173843463,2.09172891,111680.0,111670.0,0.19709]
[1760173844159,2.12376362,111680.0,111670.0,0.19709]
[1760173844754,1.73092891,111680.0,111670.0,0.19709]
[1760173844962,2.12376362,111680.0,111670.0,0.19709]
[1760173847366,1.76296362,111680.0,111670.0,0.19709]
[1760173848471,2.13390362,111680.0,111670.0,0.16291]
[1760173849069,2.14988857,111680.0,111670.0,0.16291]
[1760173849765,2.65046891,111680.0,111670.0,0.16291]
[1760173849965,2.65046891,111680.0,111670.0,0.1393807]
[1760173850164,0.1119951,111650.0,111640.0,0.50482961]
[1760173850369,0.13201473,111650.0,111640.0,0.52482961]
[1760173851262,0.23197301,111650.0,111640.0,0.52482961]
[1760173852265,0.23197301,111650.0,111640.0,0.52582961]
[1760173852466,0.59277301,111650.0,111640.0,0.17386101]
[1760173852873,0.59991301,111650.0,111640.0,0.13991101]
[1760173853170,1.46485419,111650.0,111640.0,0.13991101]
[1760173854074,1.06485419,111650.0,111640.0,0.16244101]
[1760173854277,1.06485419,111650.0,111640.0,0.18201695]
[1760173855076,1.04876758,111650.0,111640.0,0.18201695]
[1760173855273,0.63204736,111650.0,111640.0,0.16244101]
[1760173855477,0.63204736,111650.0,111640.0,0.18201695]
[1760173855678,0.63204736,111650.0,111640.0,0.16244101]
[1760173855976,0.63204736,111650.0,111640.0,0.18201695]
[1760173856177,0.63204736,111650.0,111640.0,0.15948695]
[1760173856379,1.04876758,111650.0,111640.0,0.15948695]
[1760173856680,0.64813397,111650.0,111640.0,0.15948695]
[1760173857375,0.64813397,111650.0,111640.0,0.18201695]
[1760173857770,0.63203807,111650.0,111640.0,0.18201695]
[1760173858172,0.62489807,111650.0,111640.0,0.19569695]
[1760173859177,0.62489807,111650.0,111640.0,0.17612101]
[1760173860078,0.63203807,111650.0,111640.0,0.17612101]
[1760173860273,0.62489807,111650.0,111640.0,0.17612101]
[1760173860469,0.63203807,111650.0,111640.0,0.13107961]
[1760173860676,1.44875494,111650.0,111640.0,0.13107961]
[1760173860978,1.41663323,111650.0,111640.0,0.13107961]
[1760173861279,1.46485419,111650.0,111640.0,0.13107961]
[1760173862873,1.04813397,111650.0,111640.0,0.13107961]
[1760173863070,1.46485419,111650.0,111640.0,0.13107961]
[1760173865077,0.64099397,111650.0,111640.0,0.16728961]
[1760173865374,0.28019397,111650.0,111640.0,0.16728961]
[1760173865578,0.1415959,111650.0,111640.0,0.52808961]
[1760173865975,0.1641159,111650.0,111640.0,0.52808961]
[1760173866276,1.85967423,111680.0,111670.0,0.03621]
[1760173866478,0.1119678,111700.0,111690.0,0.03621]
[1760173866682,0.4856078,111700.0,111690.0,0.16621]
[1760173866884,0.4856078,111700.0,111690.0,0.13]
[1760173867279,1.30232802,111700.0,111690.0,0.13]
[1760173867677,1.4022863,111700.0,111690.0,0.13]
[1760173868782,1.4032863,111700.0,111690.0,0.13]
[1760173869785,1.4042863,111700.0,111690.0,0.13]
[1760173870386,1.4032863,111700.0,111690.0,0.13]
[1760173870581,0.58756608,111700.0,111690.0,0.16621]
[1760173870775,0.57472608,111700.0,111690.0,0.56621]
[1760173870985,0.57472608,111700.0,111690.0,0.57514308]
[1760173871180,0.10195828,111700.0,111690.0,1.02539608]
[1760173871376,0.002,111700.0,111690.0,1.3526633]
[1760173871786,0.002,111700.0,111690.0,0.93594308]
[1760173872483,0.113965,111700.0,111690.0,0.57514308]
[1760173872780,0.113965,111700.0,111690.0,0.93594308]
[1760173872985,0.113965,111700.0,111690.0,0.17514308]
[1760173873182,0.474765,111700.0,111690.0,0.17514308]
[1760173873381,0.126805,111700.0,111690.0,0.17514308]
[1760173873679,0.113965,111700.0,111690.0,0.17514308]
[1760173873885,0.113965,111700.0,111690.0,0.53594308]
[1760173874081,0.22676328,111700.0,111690.0,0.17514308]
[1760173874386,0.58756328,111700.0,111690.0,0.16146308]
[1760173875586,0.58756328,111700.0,111690.0,0.13893308]
[1760173876686,0.58756328,111700.0,111690.0,0.17514308]
[1760173877084,0.48527828,111700.0,111690.0,0.57514308]
[1760173877287,0.002,111700.0,111690.0,0.57514308]
[1760173878187,0.02452,111700.0,111690.0,0.93594308]
[1760173878382,0.02452,111700.0,111690.0,0.57514308]
[1760173878383,0.113965,111700.0,111690.0,0.57514308]
[1760173878784,0.126805,111700.0,111690.0,0.13893308]
[1760173879189,0.002,111700.0,111690.0,0.57514308]
[1760173879389,0.091445,111700.0,111690.0,0.93594308]
[1760173879688,0.113965,111700.0,111690.0,0.93594308]
[1760173880586,0.21392328,111700.0,111690.0,0.93594308]
[1760173881689,0.22676328,111700.0,111690.0,0.93594308]
[1760173881988,0.58756328,111700.0,111690.0,0.16146308]
[1760173882886,0.58756328,111700.0,111690.0,0.17514308]
[1760173883383,0.22676328,111700.0,111690.0,0.17514308]
[1760173883590,0.21392328,111700.0,111690.0,0.17514308]
[1760173883790,0.57472328,111700.0,111690.0,0.17514308]
[1760173883985,0.21392328,111700.0,111690.0,0.17514308]
[1760173884892,0.58733328,111700.0,111690.0,0.13893308]
[1760173885788,0.58733328,111700.0,111690.0,0.16206308]
[1760173886187,0.57472328,111700.0,111690.0,0.17524308]
[1760173886383,0.58733328,111700.0,111690.0,0.17524308]
[1760173886787,0.58733328,111700.0,111690.0,0.16206308]
[1760173887186,0.58733328,111700.0,111690.0,0.01893308]
[1760173887990,0.111701,111680.0,111670.0,0.39761]
[1760173888186,0.124311,111680.0,111670.0,0.46761]
[1760173888490,0.111701,111680.0,111670.0,0.46761]
[1760173889087,0.21165928,111680.0,111670.0,0.46761]
[1760173889489,0.58606928,111680.0,111670.0,0.11589753]
[1760173889692,0.58606928,111680.0,111670.0,0.10221753]
[1760173890488,0.57345928,111680.0,111670.0,0.11539753]
[1760173891388,0.21265928,111680.0,111670.0,0.11539753]
[1760173892293,0.22526928,111680.0,111670.0,0.11539753]
[1760173892493,0.22526928,111680.0,111670.0,0.07908753]
[1760173892694,0.22526928,111680.0,111670.0,0.07]
[1760173892896,0.58606928,111680.0,111670.0,0.07]
[1760173894087,0.63406432,111680.0,111670.0,0.07]
[1760173894991,1.03406432,111680.0,111670.0,0.07]
[1760173895185,0.124319,111670.0,111660.0,0.00899675]
[1760173895391,0.485119,111670.0,111660.0,0.01]
[1760173895593,0.885119,111670.0,111660.0,0.01]
[1760173895996,0.9490423,111670.0,111660.0,0.01]
[1760173896197,0.9490423,111670.0,111640.0,7.961e-05]
[1760173896198,0.124335,111650.0,111640.0,7.961e-05]
[1760173896398,1.2880525,111650.0,111640.0,7.961e-05]
[1760173896696,0.885135,111650.0,111640.0,7.961e-05]
[1760173896897,0.885135,111650.0,111640.0,0.03007961]
[1760173897398,1.3940354,111650.0,111640.0,0.03007961]
[1760173898296,1.3940354,111650.0,111640.0,0.05320961]
[1760173898496,1.34689328,111650.0,111640.0,0.05320961]
[1760173898798,1.0342354,111650.0,111640.0,0.05320961]
[1760173899198,0.6342354,111650.0,111640.0,0.05320961]
[1760173899399,0.24473446,111650.0,111640.0,0.06638961]
[1760173900200,0.25733446,111650.0,111640.0,0.05320961]
[1760173900395,0.25733446,111650.0,111640.0,0.03007961]
[1760173900597,0.25733446,111650.0,111640.0,0.05180961]
[1760173900800,0.25733446,111650.0,111640.0,0.03007961]
[1760173901097,0.25733446,111650.0,111640.0,0.05180961]
[1760173901599,0.25733446,111650.0,111640.0,0.03007961]
[1760173901900,0.65733446,111650.0,111640.0,0.03007961]
[1760173902399,0.22528328,111650.0,111640.0,0.03007961]
[1760173902601,0.61813446,111650.0,111640.0,0.03007961]
[1760173904501,0.61813446,111650.0,111640.0,0.05180961]
[1760173905397,0.61813446,111650.0,111640.0,0.03007961]
[1760173905701,1.52146836,111650.0,111640.0,0.01007961]
[1760173906291,1.12146836,111650.0,111640.0,0.01007961]
[1760173906492,1.12146836,111650.0,111640.0,7.961e-05]
[1760173906801,1.12146836,111650.0,111640.0,0.03007961]
[1760173907300,0.76673446,111650.0,111640.0,0.05180961]
[1760173907698,0.73468328,111650.0,111640.0,0.05180961]
[1760173908297,0.76673446,111650.0,111640.0,0.03007961]
[1760173908499,0.76673446,111650.0,111640.0,7.961e-05]
[1760173908702,0.124463,111640.0,111630.0,0.08294]
[1760173909002,0.485263,111640.0,111630.0,0.09294]
[1760173909497,0.633863,111640.0,111630.0,0.09294]
[1760173909701,0.63394481,111640.0,111630.0,0.09294]
[1760173909901,0.73390309,111640.0,111630.0,0.09294]
[1760173910199,0.73390309,111640.0,111630.0,0.11251594]
[1760173910801,0.73490309,111640.0,111630.0,0.11251594]
[1760173911493,0.73490309,111640.0,111630.0,0.13424594]
[1760173911698,0.21290309,111640.0,111630.0,0.54758594]
[1760173911903,0.21290309,111640.0,111630.0,0.90838594]
[1760173911904,0.19053309,111640.0,111630.0,0.90838594]
[1760173912401,0.21290309,111640.0,111630.0,0.90838594]
[1760173912598,0.19053309,111640.0,111630.0,0.90838594]
[1760173912994,0.21290309,111640.0,111630.0,0.90838594]
[1760173913398,0.58723309,111640.0,111630.0,0.13424594]
[1760173913905,0.58723309,111640.0,111630.0,0.11251594]
[1760173914202,0.22643309,111640.0,111630.0,0.13351594]
[1760173914402,0.58723309,111640.0,111630.0,0.13351594]
[1760173915606,0.21290309,111640.0,111630.0,0.14714594]
[1760173915801,0.36150309,111640.0,111630.0,0.14714594]
[1760173916302,0.21290309,111640.0,111630.0,0.14714594]
[1760173916508,0.21290309,111640.0,111630.0,0.90794594]
[1760173917310,0.21290309,111640.0,111630.0,0.88837]
[1760173918207,0.24495427,111640.0,111630.0,0.88837]
[1760173920211,0.25848427,111640.0,111630.0,0.88837]
[1760173920607,0.61928427,111640.0,111630.0,0.52757]
[1760173921109,0.24495427,111640.0,111630.0,0.52757]
[1760173921710,0.60575427,111640.0,111630.0,0.52757]
[1760173922511,0.26104521,111640.0,111630.0,0.52757]
[1760173923212,0.17155221,111640.0,111630.0,0.88837]
[1760173923511,0.07121393,111640.0,111630.0,0.88837]
[1760173923713,0.16070693,111640.0,111630.0,0.88837]
[1760173925507,0.16070693,111640.0,111630.0,0.52757]
[1760173925711,0.16070693,111640.0,111630.0,0.88837]
[1760173925911,0.13871693,111640.0,111630.0,0.88837]
[1760173926313,0.04922393,111640.0,111630.0,0.88837]
[1760173926618,0.13871693,111640.0,111630.0,0.88837]
[1760173926818,0.04922393,111640.0,111630.0,1.332605]
[1760173927018,0.03328954,111640.0,111630.0,1.332605]
[1760173927419,0.12278254,111640.0,111630.0,0.88837]
[1760173928317,0.09057481,111640.0,111630.0,0.88837]
[1760173929419,0.09057481,111640.0,111630.0,0.9778711]
[1760173929814,0.09057481,111640.0,111630.0,0.88837]
[1760173931224,0.11052178,111640.0,111630.0,0.88837]
[1760173931617,0.11052178,111640.0,111630.0,0.80543]
[1760173933520,0.13251178,111640.0,111630.0,0.88838]
[1760173933723,0.13251178,111640.0,111630.0,0.48838]
[1760173933918,0.13251178,111640.0,111630.0,0.12758]
[1760173934826,0.16471951,111640.0,111630.0,0.12758]
[1760173935432,0.14604178,111640.0,111630.0,0.11395]
[1760173935725,0.17824951,111640.0,111630.0,0.12758]
[1760173936027,0.52551951,111640.0,111630.0,0.12758]
[1760173936226,0.16471951,111640.0,111630.0,0.12758]
[1760173936419,0.52551951,111640.0,111630.0,0.12758]
[1760173936625,0.16471951,111640.0,111630.0,0.12758]
[1760173937728,0.17824951,111640.0,111630.0,0.12758]
[1760173938328,0.53904951,111640.0,111630.0,0.12758]
[1760173938723,0.9549839,111640.0,111630.0,0.09295]
[1760173938923,1.20354218,111640.0,111630.0,0.09295]
[1760173939125,1.15540006,111640.0,111630.0,0.09295]
[1760173940026,1.20365,111640.0,111630.0,0.09295]
[1760173940731,1.05505,111640.0,111630.0,0.09295]
[1760173942428,1.00680006,111640.0,111630.0,0.09295]
[1760173943323,1.00680006,111640.0,111630.0,0.0004594]
[1760173943324,1.07072336,111640.0,111630.0,0.0004594]
[1760173943529,1.07072336,111640.0,111590.0,0.03612]
[1760173943530,0.03531,111600.0,111590.0,0.03612]
[1760173943728,0.1448591,111600.0,111590.0,0.06612]
[1760173944130,0.5056591,111600.0,111590.0,0.061368]
[1760173944339,0.53781166,111600.0,111590.0,0.038878]
[1760173944630,0.63776994,111600.0,111590.0,0.061368]
[1760173944831,1.08598308,111600.0,111590.0,0.039878]
[1760173945232,1.08595037,111600.0,111590.0,0.039878]
[1760173945432,1.03772152,111600.0,111590.0,0.039878]
[1760173945933,1.03872152,111600.0,111590.0,0.031]
[1760173946125,1.40956442,111600.0,111590.0,0.031]
[1760173946730,1.41056442,111600.0,111590.0,0.031]
[1760173946932,1.41056442,111600.0,111590.0,0.03]
[1760173947137,1.44264618,111600.0,111590.0,0.03]
[1760173947436,1.39241733,111600.0,111590.0,0.03]
[1760173947729,1.39641733,111600.0,111590.0,0.03]
[1760173948637,1.41256442,111600.0,111590.0,0.03]
[1760173949528,1.36433557,111600.0,111590.0,0.03]
[1760173949734,1.39638074,111600.0,111590.0,0.03]
[1760173950434,1.04164684,111600.0,111590.0,0.03]
[1760173950634,1.04164684,111600.0,111590.0,0.05249]
[1760173950830,0.66033478,111600.0,111590.0,0.05249]
[1760173951039,0.13222143,111600.0,111590.0,0.82717]
[1760173951228,0.04269623,111600.0,111590.0,0.82717]
[1760173951430,0.04269623,111600.0,111590.0,0.9167032]
[1760173951633,0.01916683,111600.0,111590.0,0.9167032]
[1760173952036,0.10869203,111600.0,111590.0,0.42717]
[1760173952337,0.11021314,111600.0,111590.0,0.42717]
[1760173952529,0.02068794,111600.0,111590.0,0.42717]
[1760173952728,0.11021314,111600.0,111590.0,0.42717]
[1760173953440,0.11021314,111600.0,111590.0,0.82717]
[1760173954234,0.11021314,111600.0,111590.0,0.42717]
[1760173955436,0.13280314,111600.0,111590.0,0.42717]
[1760173956335,0.13280314,111600.0,111590.0,0.05249]
[1760173956336,0.50632314,111600.0,111590.0,0.05249]
[1760173956640,0.50632314,111600.0,111590.0,0.03]
[1760173956641,0.90632314,111600.0,111590.0,0.03]
[1760173957340,1.03832659,111600.0,111590.0,0.03]
[1760173958440,1.45538582,111600.0,111590.0,0.05249]
[1760173958638,1.45538582,111600.0,111590.0,0.03]
[1760173959036,1.42334065,111600.0,111590.0,0.03]
[1760173959642,1.02334065,111600.0,111590.0,0.05249]
[1760173960244,0.66254065,111600.0,111590.0,0.06525]
[1760173960446,0.24548142,111600.0,111590.0,0.06525]
[1760173961144,0.24548142,111600.0,111590.0,0.05249]
[1760173961337,0.24548142,111600.0,111590.0,0.06525]
[1760173961532,0.23276142,111600.0,111590.0,0.06525]
[1760173961738,0.26480659,111600.0,111590.0,0.06525]
[1760173961942,0.23276142,111600.0,111590.0,0.06525]
[1760173962142,0.26480659,111600.0,111590.0,0.06525]
[1760173962843,0.27866659,111600.0,111590.0,0.05249]
[1760173963744,0.28476678,111600.0,111590.0,0.06525]
[1760173964145,0.23013161,111600.0,111590.0,0.82605]
[1760173964341,0.15146333,111600.0,111590.0,0.82605]
[1760173964743,0.13017333,111600.0,111590.0,0.82605]
[1760173965039,0.13017323,111600.0,111590.0,0.82105]
[1760173965347,0.15146323,111600.0,111590.0,0.82105]
[1760173965537,0.14946323,111600.0,111590.0,0.82105]
[1760173965742,0.12817323,111600.0,111590.0,0.82105]
[1760173966946,0.14946323,111600.0,111590.0,0.82105]
[1760173967537,0.12673417,111600.0,111590.0,0.82105]
[1760173967738,0.01996019,111600.0,111590.0,0.9105832]
[1760173968148,0.0895129,111620.0,111610.0,0.03519]
[1760173968339,0.1108029,111620.0,111610.0,0.49599]
[1760173968544,0.0895129,111620.0,111610.0,0.49599]
[1760173968848,0.0895129,111620.0,111610.0,0.89599]
[1760173969437,0.0895129,111620.0,111610.0,0.9855071]
[1760173969641,0.0895129,111620.0,111610.0,0.89599]
[1760173970646,0.12154287,111640.0,111630.0,0.03519]